bitfinex/quotes_SOLUSD_20251006
["timestamp","ask_amount","ask_price","bid_price","bid_amount"]
[1759725297783,3.21775432,231.39,231.36,20.8]
[1759725297973,0.72,231.38,231.3,2.25416947]
[1759725298281,3.21702706,231.37,231.34,20.8]
[1759725298470,0.72,231.41,231.34,20.8]
[1759725298664,3.21716757,231.4,231.34,20.8]
[1759725298881,3.21716757,231.39,231.36,20.8]
[1759725299079,3.21716757,231.38,231.36,20.8]
[1759725299287,26.47517792,231.47,231.36,20.8]
[1759725299465,0.72,231.43,231.36,20.8]
[1759725299665,3.21740953,231.42,231.36,20.8]
[1759725299872,3.21740953,231.41,231.36,20.8]
[1759725300074,3.21740953,231.4,231.36,20.8]
[1759725300278,3.21740953,231.39,231.36,20.8]
[1759725300482,0.72,231.43,231.36,20.8]
[1759725300683,3.21684843,231.42,231.36,20.8]
[1759725300870,3.21684843,231.41,231.36,20.8]
[1759725301178,3.21684843,231.4,231.36,20.8]
[1759725301378,3.21684843,231.39,231.36,20.8]
[1759725301575,0.72,231.41,231.36,20.8]
[1759725301779,3.93629033,231.4,231.3,2.25416947]
[1759725302077,3.93629033,231.39,231.32,20.8]
[1759725302280,3.21629033,231.38,231.32,20.8]
[1759725302488,3.21629033,231.37,231.32,20.8]
[1759725302677,0.72,231.37,231.32,20.8]
[1759725302881,1.35495401,231.43,231.32,20.8]
[1759725303077,3.93598657,231.42,231.32,20.8]
[1759725303280,3.93598657,231.41,231.33,10.87647521]
[1759725303602,3.93598657,231.4,231.34,20.8]
[1759725303778,3.93598657,231.39,231.34,20.8]
[1759725303976,1.35495401,231.36,231.3,2.25416947]
[1759725304171,1.35495401,231.34,231.2,5.8]
[1759725304494,3.93598657,231.33,231.25,2.25504633]
[1759725304694,3.93598657,231.32,231.25,2.25504633]
[1759725304993,0.72,231.32,231.25,13.13151317]
[1759725305575,0.72,231.31,231.25,13.13151317]
[1759725305897,0.72,231.3,231.25,13.13151317]
[1759725306591,0.72,231.29,231.25,2.25503796]
[1759725306800,0.72,231.28,231.15,30.5]
[1759725306987,1.35495401,231.3,231.21,2.25547041]
[1759725306988,0.72,231.27,231.21,2.25547041]
[1759725307294,0.72,231.27,231.19,10.87647521]
[1759725307685,0.72,231.27,231.21,2.2554811]
[1759725308484,2.07495401,231.26,231.21,2.2554811]
[1759725308799,2.07495401,231.26,231.05,18.09697465]
[1759725308800,0.72,231.25,231.16,20.8]
[1759725308977,2.07495401,231.24,231.17,2.25596966]
[1759725309179,0.72,231.23,231.17,2.25596966]
[1759725309377,0.72,231.22,231.17,2.25596966]
[1759725309575,0.72,231.21,231.17,2.25596966]
[1759725309784,0.72,231.2,231.17,2.25596966]
[1759725310292,1.35495401,231.24,231.17,2.25596966]
[1759725310598,0.72,231.19,231.17,2.25596966]
[1759725311974,0.72,231.18,231.17,2.25596966]
[1759725312173,0.72,231.18,231.02,4.91004486]
[1759725312174,0.72,231.18,231.03,4.32842523]
[1759725312477,0.72,231.18,231.12,10.87647521]
[1759725314407,5.68006397,231.21,231.11,2.25637296]
[1759725314593,0.72,231.17,231.11,2.25637296]
[1759725314776,0.72,231.16,231.11,2.25637296]
[1759725314981,0.72,231.15,231.11,2.25637296]
[1759725315183,0.72,231.14,231.11,2.25637296]
[1759725315403,0.72,231.13,231.11,2.25637296]
[1759725319298,0.71,231.12,231.02,0.1]
[1759725319589,0.71,231.14,231.07,2.25680465]
[1759725319911,0.71,231.16,231.05,10.87647521]
[1759725320109,0.71,231.15,231.03,31.67647521]
[1759725320284,0.71,231.15,231.07,2.25673492]
[1759725320487,0.71,231.15,231.03,31.67647521]
[1759725320687,0.71,231.15,231.03,35.21272401]
[1759725320918,0.71,231.15,231.07,2.25672543]
[1759725321099,0.71,231.15,231.03,35.21272401]
[1759725321410,30.56,231.21,231.07,2.2567302]
[1759725321713,0.71,231.17,231.03,39.5411331]
[1759725321918,0.71,231.17,231.08,10.87647521]
[1759725322290,0.71,231.17,231.11,20.8]
[1759725326117,0.71,231.17,231.08,10.87647521]
[1759725327113,0.71,231.19,231.08,10.87647521]
[1759725327719,20.8,231.21,231.08,10.87647521]
[1759725327893,0.71,231.18,231.08,10.87647521]
[1759725329317,0.71,231.18,231.11,20.8]
[1759725329811,0.71,231.17,231.11,20.8]
[1759725333211,5.67986448,231.22,231.11,20.8]
[1759725333530,0.71,231.21,231.11,20.8]
[1759725333700,0.67,231.2,231.11,20.8]
[1759725333902,0.67,231.19,231.11,20.8]
[1759725336618,20.8,231.24,231.12,10.87647521]
[1759725336920,3.85383823,231.23,231.12,10.87647521]
[1759725337109,0.67,231.22,231.12,10.87647521]
[1759725337310,0.67,231.21,231.12,10.87647521]
[1759725337511,20.8,231.24,231.12,10.87647521]
[1759725337703,3.85448318,231.23,231.12,10.87647521]
[1759725338027,0.67,231.22,231.12,10.87647521]
[1759725338216,0.67,231.21,231.12,10.87647521]
[1759725338420,0.67,231.2,231.12,10.87647521]
[1759725341227,25.12467957,231.24,231.08,31.67647521]
[1759725341228,0.67,231.23,231.08,31.67647521]
[1759725341430,3.85958009,231.22,231.08,36.00398083]
[1759725341634,0.67,231.21,231.08,36.00398083]
[1759725343326,3.1928803,231.2,231.08,36.00398083]
[1759725344627,0.67,231.19,231.08,31.67647521]
[1759725344928,0.67,231.19,231.08,36.00396637]
[1759725346414,0.67,231.25,231.08,46.82273043]
[1759725346617,3.19622857,231.24,231.08,46.82273043]
[1759725346824,3.19622857,231.23,231.13,31.67647521]
[1759725347123,12.96,231.32,231.13,31.67647521]
[1759725347124,2.12176643,231.33,231.13,62.09647521]
[1759725347321,34.30918087,231.32,231.13,62.09647521]
[1759725347520,20.8,231.29,231.13,62.09647521]
[1759725347824,3.90918087,231.28,231.13,62.09647521]
[1759725348027,3.19918087,231.27,231.15,10.87647521]
[1759725348334,3.19918087,231.26,231.15,10.87647521]
[1759725348541,3.19918087,231.25,231.15,15.20248854]
[1759725348710,3.19918087,231.24,231.15,15.20248854]
[1759725348905,3.19918087,231.23,231.15,15.20248854]
[1759725349114,0.71,231.29,231.17,10.87647521]
[1759725349326,3.20474179,231.28,231.17,10.87647521]
[1759725349537,3.20474179,231.27,231.17,10.87647521]
[1759725349708,3.20474179,231.26,231.17,10.87647521]
[1759725349908,3.20474179,231.25,231.17,10.87647521]
[1759725350128,3.20474179,231.24,231.17,10.87647521]
[1759725350328,20.8,231.29,231.17,10.87647521]
[1759725350329,3.20474179,231.23,231.17,10.87647521]
[1759725350528,3.20474179,231.22,231.17,10.87647521]
[1759725350833,0.71,231.24,231.17,10.87647521]
[1759725351028,3.20801047,231.23,231.17,10.87647521]
[1759725351235,3.20801047,231.22,231.17,10.87647521]
[1759725351534,3.20801047,231.21,231.17,10.87647521]
[1759725351711,0.71,231.24,231.17,10.87647521]
[1759725352035,3.20999481,231.23,231.17,10.87647521]
[1759725352324,3.20999481,231.22,231.17,10.87647521]
[1759725352533,3.20999481,231.21,231.17,10.87647521]
[1759725352734,0.71,231.24,231.17,10.87647521]
[1759725352946,3.21099084,231.23,231.17,10.87647521]
[1759725353236,3.21099084,231.22,231.17,10.87647521]
[1759725353412,3.21099084,231.21,231.17,10.87647521]
[1759725353612,0.71,231.24,231.17,10.87647521]
[1759725353841,3.21230248,231.23,231.17,10.87647521]
[1759725354045,3.21230248,231.22,231.17,10.87647521]
[1759725354348,3.21230248,231.21,231.17,10.87647521]
[1759725354533,0.71,231.26,231.17,10.87647521]
[1759725354720,3.21205302,231.25,231.17,10.87647521]
[1759725354920,3.21205302,231.24,231.17,10.87647521]
[1759725355126,3.21205302,231.23,231.17,10.87647521]
[1759725355440,3.21205302,231.22,231.17,10.87647521]
[1759725355631,0.71,231.26,231.17,10.87647521]
[1759725355936,3.21166255,231.25,231.17,10.87647521]
[1759725356110,3.21166255,231.24,231.17,10.87647521]
[1759725356311,3.21166255,231.23,231.2,20.8]
[1759725356520,3.21166255,231.22,231.2,20.8]
[1759725356719,0.71,231.26,231.2,20.8]
[1759725356910,3.21189823,231.25,231.2,20.8]
[1759725357115,3.21189168,231.24,231.2,20.8]
[1759725357339,3.21189168,231.23,231.2,20.8]
[1759725357530,3.21189168,231.22,231.2,20.8]
[1759725357840,0.71,231.25,231.2,20.8]
[1759725358011,32.54176643,231.31,231.2,20.8]
[1759725358012,3.21171068,231.24,231.2,20.8]
[1759725358212,3.92171068,231.23,231.11,2.25565724]
[1759725358430,3.92171068,231.22,231.11,2.25565724]
[1759725358634,6.04347711,231.21,231.11,2.25565724]
[1759725358831,3.92171068,231.2,231.11,2.25565724]
[1759725359008,30.4,231.22,231.11,2.25565724]
[1759725359009,3.92171068,231.19,231.11,2.25565724]
[1759725359211,3.92171068,231.18,231.11,2.25565724]
[1759725359439,3.92171068,231.17,231.11,2.25565724]
[1759725359628,3.92171068,231.16,231.11,2.25565724]
[1759725359938,0.71,231.15,231.11,2.25565724]
[1759725360535,0.71,231.14,231.11,2.25565724]
[1759725361642,4.32522336,231.21,231.11,2.25565724]
[1759725361941,3.92037075,231.2,231.11,23.05565724]
[1759725362117,3.92037075,231.19,231.11,23.05565724]
[1759725362332,30.42,231.22,231.11,23.05565724]
[1759725362333,3.92037075,231.18,231.11,23.05565724]
[1759725362532,3.92037075,231.17,231.11,23.05565724]
[1759725362855,3.21037075,231.16,231.11,23.05565724]
[1759725363057,0.71,231.16,231.11,23.05565724]
[1759725363654,2.12176643,231.23,231.12,10.87647521]
[1759725363655,0.71,231.2,231.12,10.87647521]
[1759725363837,3.21032316,231.19,231.12,10.87647521]
[1759725364158,3.21032316,231.18,231.12,10.87647521]
[1759725364357,3.21032316,231.17,231.12,10.87647521]
[1759725364657,3.21032316,231.16,231.12,10.87647521]
[1759725364858,0.71,231.19,231.12,10.87647521]
[1759725365057,3.21009501,231.18,231.12,10.87647521]
[1759725365260,3.21009501,231.17,231.12,10.87647521]
[1759725365444,3.21009501,231.16,231.12,10.87647521]
[1759725365647,0.71,231.19,231.12,10.87647521]
[1759725365841,3.21043751,231.18,231.12,10.87647521]
[1759725366146,3.21043751,231.17,231.12,10.87647521]
[1759725366348,3.21043751,231.16,231.12,10.87647521]
[1759725366553,0.71,231.19,231.12,10.87647521]
[1759725366758,3.21042166,231.18,231.12,10.87647521]
[1759725366938,3.21042166,231.17,231.12,10.87647521]
[1759725367138,3.21042166,231.16,231.12,10.87647521]
[1759725367365,0.71,231.19,231.12,10.87647521]
[1759725367570,3.21041576,231.18,231.12,10.87647521]
[1759725367760,3.21041576,231.17,231.12,10.87647521]
[1759725367949,3.21041576,231.16,231.12,10.87647521]
[1759725368144,0.71,231.19,231.12,10.87647521]
[1759725368450,3.21037984,231.18,231.12,10.87647521]
[1759725368646,3.21037984,231.17,231.12,10.87647521]
[1759725368847,3.21037984,231.16,231.12,10.87647521]
[1759725369050,0.71,231.19,231.12,10.87647521]
[1759725369368,3.21050566,231.18,231.12,10.87647521]
[1759725369542,34.72433118,231.25,231.12,10.87647521]
[1759725369543,3.21050566,231.17,231.15,20.8]
[1759725369742,0.71,231.23,231.16,10.87647521]
[1759725369966,3.21093961,231.22,231.16,10.87647521]
[1759725370155,3.21093961,231.21,231.16,10.87647521]
[1759725370356,3.92093961,231.2,231.16,10.87647521]
[1759725370665,0.71,231.19,231.15,20.8]
[1759725370854,0.71,231.18,231.15,20.8]
[1759725371760,6.44628817,231.24,231.15,20.8]
[1759725371951,0.71,231.17,231.12,31.67647521]
[1759725372146,6.44628817,231.24,231.12,31.67647521]
[1759725372355,0.71,231.2,231.15,20.8]
[1759725372565,0.71,231.22,231.15,20.8]
[1759725373269,0.71,231.22,231.14,10.87647521]
[1759725374058,0.71,231.22,231.17,20.8]
[1759725374260,0.71,231.21,231.17,20.8]
[1759725376483,0.71,231.2,231.14,31.67647521]
[1759725376667,0.71,231.19,231.11,2.25565724]
[1759725376986,0.71,231.18,231.12,10.87647521]
[1759725377279,0.71,231.17,231.12,10.87647521]
[1759725377446,81.22176643,231.24,231.12,10.87647521]
[1759725377647,87.34563426,231.23,231.12,10.87647521]
[1759725377875,3.21090877,231.22,231.12,10.87647521]
[1759725378074,0.68,231.21,231.12,10.87647521]
[1759725378261,0.68,231.2,231.12,10.87647521]
[1759725378588,0.68,231.19,231.12,10.87647521]
[1759725380880,0.68,231.21,231.15,20.8]
[1759725381086,79.1,231.23,231.15,20.8]
[1759725381087,0.68,231.2,231.15,20.8]
[1759725381381,0.68,231.19,231.12,20.8]
[1759725381579,0.68,231.18,231.12,20.8]
[1759725381871,0.68,231.17,231.12,20.8]
[1759725382053,0.68,231.16,231.12,20.8]
[1759725382254,0.68,231.15,231.08,10.87647521]
[1759725382457,0.68,231.15,231.11,20.8]
[1759725382684,0.68,231.14,231.11,20.8]
[1759725383068,0.68,231.18,231.11,20.8]
[1759725383286,0.68,231.17,231.11,20.8]
[1759725384167,0.68,231.16,231.11,20.8]
[1759725384486,0.68,231.15,231.11,20.8]
[1759725384672,0.68,231.14,231.11,20.8]
[1759725385178,0.68,231.16,231.11,20.8]
[1759725385371,4.32507244,231.21,231.11,20.8]
[1759725385579,0.68,231.15,231.11,20.8]
[1759725388686,0.68,231.14,231.11,20.8]
[1759725388881,0.68,231.16,231.11,20.8]
[1759725389771,0.68,231.2,231.13,20.8]
[1759725390178,4.32463582,231.24,231.13,20.8]
[1759725390372,3.88931951,231.23,231.13,20.8]
[1759725390578,3.88931951,231.22,231.13,20.8]
[1759725390779,3.88931951,231.21,231.13,20.8]
[1759725390984,3.88931951,231.2,231.13,20.8]
[1759725391187,0.68,231.19,231.13,20.8]
[1759725391488,4.32478099,231.23,231.13,20.8]
[1759725391489,0.68,231.18,231.13,20.8]
[1759725391696,0.68,231.17,231.13,20.8]
[1759725395103,0.72,231.19,231.13,20.8]
[1759725397473,0.72,231.18,231.13,20.8]
[1759725398900,0.72,231.2,231.13,20.8]
[1759725402297,79.1,231.23,231.13,20.8]
[1759725402503,0.72,231.19,231.13,20.8]
[1759725404095,4.3249588,231.22,231.13,20.8]
[1759725404304,0.72,231.18,231.1,20.8]
[1759725404615,0.72,231.17,231.1,20.8]
[1759725404780,0.72,231.16,231.1,20.8]
[1759725406282,0.72,231.15,231.1,20.8]
[1759725412698,0.66,231.14,231.1,20.8]
[1759725413801,0.66,231.13,231.1,20.8]
[1759725415003,0.66,231.15,231.1,20.8]
[1759725415307,0.66,231.14,231.1,20.8]
[1759725416711,83.42546825,231.19,231.1,20.8]
[1759725416893,0.66,231.13,231.1,20.8]
[1759725417094,0.66,231.15,231.1,20.8]
[1759725417306,0.66,231.14,231.1,20.8]
[1759725418098,0.66,231.13,231.07,2.25648721]
[1759725418410,0.66,231.12,231.04,20.8]
[1759725418613,0.66,231.11,231.04,23.05696596]
[1759725418799,0.66,231.1,231.04,23.05696596]
[1759725418988,1.35765024,231.16,231.04,23.05696596]
[1759725419188,3.87582051,231.15,231.04,23.05696596]
[1759725419410,3.87582051,231.14,231.04,23.05696596]
[1759725419709,0.66,231.13,231.04,23.05696596]
[1759725419908,0.66,231.12,231.04,23.05696596]
[1759725420214,0.66,231.11,231.04,23.05696596]
[1759725420401,0.66,231.1,231.04,2.25696596]
[1759725420601,1.35765024,231.06,231.02,0.1]
[1759725420908,3.87558325,231.05,231.02,0.1]
[1759725421095,3.21558325,231.04,231.02,0.1]
[1759725421405,3.21558325,231.03,231.02,0.1]
[1759725421586,3.87558325,231.03,231.02,0.1]
[1759725422811,8.20402544,231.03,231.02,0.1]
[1759725423215,5.23323349,231.03,231.01,0.1]
[1759725423398,0.66,231.03,231.01,0.1]
[1759725423925,0.66,231.06,231.01,0.1]
[1759725424220,3.86592649,231.05,231.01,0.1]
[1759725424427,3.20592649,231.04,231.01,0.1]
[1759725424714,3.86592649,231.04,231.01,0.1]
[1759725424913,4.32752394,231.08,231.01,0.1]
[1759725424914,0.66,231.08,231.01,0.1]
[1759725425120,3.20467834,231.07,231.01,0.21]
[1759725425998,3.20467834,231.07,231.01,0.1]
[1759725426797,0.66,231.06,231.01,0.1]
[1759725426995,0.66,231.05,231.01,0.1]
[1759725427194,0.66,231.04,231.01,0.1]
[1759725427496,30.5,231.08,231.01,0.1]
[1759725427698,3.86281952,231.07,231.01,0.1]
[1759725427893,0.66,231.07,231.01,0.1]
[1759725428693,30.5,231.08,231.01,0.21]
[1759725429619,31.16,231.08,231.01,0.21]
[1759725430003,0.66,231.11,231.04,20.8]
[1759725430204,3.20147454,231.1,231.04,20.8]
[1759725430805,3.20147454,231.1,231.04,20.91]
[1759725431206,3.86147454,231.1,231.04,20.8]
[1759725431525,0.66,231.1,231.04,20.8]
[1759725432331,0.66,231.09,231.01,20.9]
[1759725432623,34.82664665,231.13,231.02,10.98647521]
[1759725432624,0.66,231.1,231.02,10.98647521]
[1759725433701,30.5,231.13,231.02,10.98647521]
[1759725433702,30.5,231.13,231.05,20.8]
[1759725434024,3.19868278,231.12,231.06,0.11]
[1759725434895,30.5,231.13,231.06,0.11]
[1759725435308,31.16,231.13,231.06,0.11]
[1759725436131,3.19883332,231.12,231.05,20.8]
[1759725436805,3.85883332,231.12,231.05,20.8]
[1759725437005,0.66,231.12,231.05,20.8]
[1759725438134,3.19899889,231.11,231.05,20.8]
[1759725439222,0.66,231.12,231.05,20.8]
[1759725439618,0.72,231.11,231.01,0.1]
[1759725439823,3.19785298,231.1,231.01,0.1]
[1759725440021,0.72,231.09,231.01,0.1]
[1759725441812,3.19960064,231.08,231.01,0.1]
[1759725442034,0.72,231.07,231.01,20.9]
[1759725442221,0.72,231.06,231.01,0.1]
[1759725443752,0.72,231.05,231.01,0.1]
[1759725443930,0.72,231.04,231.01,0.1]
[1759725445533,1.35765024,231.1,231.01,0.1]
[1759725445840,0.72,231.03,231.01,0.1]
[1759725446037,0.72,231.02,231.01,0.1]
[1759725449851,0.72,231.04,231.01,0.1]
[1759725450460,0.72,231.03,231.01,0.1]
[1759725450951,0.72,231.08,231.02,20.8]
[1759725451126,0.72,231.07,231.02,20.8]
[1759725451329,0.72,231.06,231.02,20.8]
[1759725451565,4.32683222,231.12,231.01,0.1]
[1759725451741,0.72,231.05,231.01,0.1]
[1759725452260,0.72,231.05,231.01,20.9]
[1759725452848,0.72,231.07,231.01,20.9]
[1759725454243,0.68,231.09,231.01,21.01]
[1759725454444,3.8848902,231.08,231.01,21.01]
[1759725454645,0.68,231.08,231.01,21.01]
[1759725456134,4.32675904,231.12,231.01,20.9]
[1759725456333,0.68,231.07,231.01,20.9]
[1759725457645,0.68,231.06,231.01,20.9]
[1759725458367,0.68,231.06,231.01,21.01]
[1759725458559,32.62347404,231.13,231.02,10.87647521]
[1759725458758,0.68,231.11,231.05,20.8]
[1759725459058,3.88886358,231.1,231.05,20.8]
[1759725459255,3.88886358,231.09,231.05,20.8]
[1759725459470,3.20886358,231.08,231.05,20.8]
[1759725459762,3.20886358,231.07,231.05,20.8]
[1759725459939,0.68,231.07,231.05,20.8]
[1759725460539,30.5,231.13,231.05,20.8]
[1759725460739,3.89053125,231.12,231.05,20.8]
[1759725460964,3.89053125,231.11,231.05,20.8]
[1759725461263,3.89053125,231.1,231.05,20.8]
[1759725461441,3.89053125,231.09,231.05,20.8]
[1759725461639,3.89053125,231.08,231.01,11.08647521]
[1759725461849,3.89053125,231.07,231.01,10.97647521]
[1759725462049,3.21053125,231.06,231.01,10.97647521]
[1759725462246,0.68,231.06,231.01,10.97647521]
[1759725462648,0.68,231.05,231.01,0.1]
[1759725462865,0.68,231.04,231.03,20.8]
[1759725464145,0.68,231.06,231.03,20.8]
[1759725464356,3.21473257,231.05,231.03,20.8]
[1759725464669,0.68,231.06,231.03,20.8]
[1759725464872,3.21486887,231.05,231.03,20.8]
[1759725465175,0.68,231.06,231.03,20.8]
[1759725465354,3.21486887,231.05,231.03,20.8]
[1759725465555,0.68,231.06,231.03,20.8]
[1759725465757,3.21493934,231.05,231.03,20.8]
[1759725465956,0.68,231.08,231.03,20.8]
[1759725466163,3.21417417,231.07,231.03,20.8]
[1759725466356,3.21417417,231.06,231.03,20.8]
[1759725466652,3.21417417,231.05,231.03,20.8]
[1759725466853,0.68,231.08,231.03,20.8]
[1759725467058,3.89434182,231.07,231.03,20.8]
[1759725467372,3.21434182,231.06,231.03,20.8]
[1759725467572,3.21434182,231.05,231.03,20.8]
[1759725467764,0.72,231.08,231.03,20.8]
[1759725467971,4.32658439,231.13,231.03,20.8]
[1759725467972,3.93483042,231.07,231.03,20.8]
[1759725468167,3.21483042,231.06,231.03,20.8]
[1759725468468,3.21483042,231.05,231.03,20.8]
[1759725468764,0.72,231.07,231.03,20.8]
[1759725468971,3.21557696,231.06,231.03,20.8]
[1759725469146,3.21557696,231.05,231.03,20.8]
[1759725469342,0.72,231.09,231.03,20.8]
[1759725469564,3.21635735,231.08,231.03,20.8]
[1759725469772,3.21635735,231.07,231.03,20.8]
[1759725469960,3.21635735,231.06,231.03,20.8]
[1759725470161,0.72,231.08,231.03,20.8]
[1759725470361,3.93638942,231.07,231.03,20.8]
[1759725470557,3.21638942,231.06,231.03,20.8]
[1759725470863,0.72,231.07,231.03,20.8]
[1759725471167,3.93638485,231.06,231.03,20.8]
[1759725471476,0.72,231.08,231.03,20.8]
[1759725471774,3.93672644,231.07,231.03,20.8]
[1759725471947,3.21672644,231.06,231.03,20.8]
[1759725472154,0.72,231.08,231.03,20.8]
[1759725472345,3.21698587,231.07,231.03,20.8]
[1759725472551,3.21698587,231.06,231.03,20.8]
[1759725472850,0.72,231.08,231.03,20.8]
[1759725473051,3.21709676,231.07,231.03,20.8]
[1759725473275,3.21709676,231.06,231.03,20.8]
[1759725473575,0.72,231.08,231.03,20.8]
[1759725473769,3.93720362,231.07,231.03,20.8]
[1759725473968,3.21720362,231.06,231.03,20.8]
[1759725474169,0.72,231.07,231.03,20.8]
[1759725474380,3.21708866,231.06,231.03,20.8]
[1759725474676,0.72,231.07,231.03,20.8]
[1759725474861,3.21708866,231.06,231.03,20.8]
[1759725475062,0.72,231.07,231.03,20.8]
[1759725475264,3.21702214,231.06,231.03,20.8]
[1759725475481,0.72,231.06,231.03,20.8]
[1759725475852,0.72,231.08,231.03,20.8]
[1759725476058,3.21701934,231.07,231.03,20.8]
[1759725476254,3.21701934,231.06,231.03,20.8]
[1759725476463,0.72,231.08,231.03,20.8]
[1759725476677,3.21707904,231.07,231.03,20.8]
[1759725476873,3.21707904,231.06,231.03,20.91]
[1759725477068,0.72,231.1,231.03,20.8]
[1759725477378,3.21715983,231.09,231.04,10.98647521]
[1759725477576,3.21715983,231.08,231.04,10.98647521]
[1759725477775,3.21715983,231.08,231.03,51.16]
[1759725477776,0.72,231.08,231.06,20.8]
[1759725478074,4.32603692,231.16,231.06,20.8]
[1759725478257,3.93711374,231.15,231.06,20.8]
[1759725478458,3.93711374,231.14,231.06,20.8]
[1759725478677,3.93711374,231.13,231.06,20.8]
[1759725478853,3.93711374,231.12,231.06,20.8]
[1759725479054,3.21711374,231.11,231.06,20.8]
[1759725479383,3.93711374,231.1,231.06,20.8]
[1759725479675,3.21711374,231.09,231.06,20.8]
[1759725479883,3.21711374,231.08,231.06,20.8]
[1759725480068,0.72,231.09,231.06,20.8]
[1759725480262,3.21707161,231.08,231.06,20.8]
[1759725480566,0.72,231.1,231.06,20.8]
[1759725480768,3.93696321,231.09,231.06,20.8]
[1759725481077,3.21696321,231.08,231.06,20.8]
[1759725481378,0.72,231.09,231.06,20.8]
[1759725481560,3.21666569,231.08,231.06,20.8]
[1759725481758,0.72,231.09,231.06,20.8]
[1759725481980,3.21659178,231.08,231.06,20.91]
[1759725482161,4.32602832,231.16,231.06,20.8]
[1759725482360,0.72,231.12,231.06,20.8]
[1759725482575,3.93658141,231.11,231.06,20.8]
[1759725482877,3.93658141,231.1,231.06,20.8]
[1759725483056,3.93658141,231.09,231.06,20.8]
[1759725483257,0.72,231.09,231.06,20.8]
[1759725484697,4.32602832,231.16,231.06,20.8]
[1759725484698,0.72,231.13,231.06,20.8]
[1759725484978,3.21586341,231.12,231.06,20.91]
[1759725485301,3.21586341,231.11,231.06,20.91]
[1759725485483,3.21586341,231.1,231.06,20.91]
[1759725485782,0.72,231.12,231.06,20.91]
[1759725486078,34.68585526,231.17,231.05,20.8]
[1759725486079,3.9356108,231.11,231.05,20.8]
[1759725486269,3.9356108,231.1,231.05,20.8]
[1759725486469,3.2152334,231.09,231.05,20.8]
[1759725486689,3.9352334,231.08,231.05,20.8]
[1759725486882,0.72,231.1,231.05,20.8]
[1759725487060,3.93523651,231.09,231.05,20.8]
[1759725487261,3.21523651,231.08,231.05,20.8]
[1759725487461,0.72,231.09,231.05,20.8]
[1759725487675,3.21464053,231.08,231.05,20.8]
[1759725487883,0.72,231.09,231.05,20.8]
[1759725488082,3.21463985,231.08,231.05,20.8]
[1759725488280,0.72,231.09,231.05,20.8]
[1759725488489,3.2147141,231.08,231.05,20.8]
[1759725488664,0.72,231.09,231.05,20.8]
[1759725488978,3.21476704,231.08,231.05,20.8]
[1759725489180,0.72,231.09,231.05,20.8]
[1759725489385,43.2980261,231.17,231.05,20.8]
[1759725489386,3.21498794,231.08,231.05,20.8]
[1759725489685,12.96,231.19,231.06,0.11]
[1759725489987,0.72,231.14,231.09,20.8]
[1759725490178,3.21521777,231.13,231.07,51.14]
[1759725490391,3.21521777,231.12,231.07,51.14]
[1759725490562,3.21521777,231.11,231.07,20.8]
[1759725490762,3.21521777,231.1,231.09,20.8]
[1759725495362,0.72,231.13,231.09,20.8]
[1759725495682,79.1,231.17,231.06,41.21647521]
[1759725495882,0.72,231.12,231.06,62.01647521]
[1759725496771,0.72,231.14,231.09,20.8]
[1759725496975,0.72,231.13,231.09,20.8]
[1759725499476,79.1,231.17,231.07,0.11]